fUSD/lending_fUSD_20240921
["ID","MTS","AMOUNT","RATE_DAILY","PERIOD"]
[338717137,1726895476357,-602.98,0.00014794,2]
[338717138,1726895476368,-1026.96,0.00014794,2]
[338717139,1726895476380,-546.39,0.00014794,2]
[338717140,1726895476389,-602.98,0.00014794,2]
[338717141,1726895476398,-3692.34,0.00014794,2]
[338717142,1726895476407,-1026.96,0.00014794,2]
[338717143,1726895476417,-546.39,0.00014794,2]
[338717144,1726895476426,-602.98,0.00014794,2]
[338717145,1726895476435,-3593.89386152,0.00014794,2]
[338717146,1726895481681,-151.0,0.00014111,2]
[338717147,1726895481693,-98.44613848,0.00014794,2]
[338717148,1726895481705,-550.69386152,0.00014794,2]
[338717149,1726895510556,222.95,0.00011822,2]
[338717151,1726895566741,199.13672796,0.00011164,2]
[338717152,1726895783759,7630.56489214,0.00011604,2]
[338717155,1726896060822,229.52,0.00011537,2]
[338717158,1726896262674,600.0,0.00011164,2]
[338717163,1726896426766,500.0,0.00011164,2]
[338717166,1726896563821,283.91,0.00010959,2]
[338717168,1726896589613,-300.0,0.00012779,2]
[338717169,1726896589636,-53700.0,0.0001278,2]
[338717170,1726896595071,500.0,0.00011164,2]
[338717171,1726896616702,822.39,0.00012,2]
[338717183,1726896631997,-500.0,0.00012534,2]
[338717184,1726896632007,-225.97595541,0.0001278,2]
[338717185,1726896632016,-271.69060651,0.00012788,2]
[338717186,1726896632028,-1611.51939349,0.00012788,2]
[338717187,1726896632038,-171.30634976,0.000129,2]
[338717188,1726896632047,-500.0,0.00012973,2]
[338717189,1726896632057,-500.0,0.00012973,2]
[338717190,1726896632067,-434.52846814,0.00012973,2]
[338717191,1726896632076,-152.34,0.0001299,2]
[338717192,1726896632086,-150.0,0.00012998,2]
[338717193,1726896632096,-500.0,0.00012999,2]
[338717194,1726896632105,-380.30578861,0.00012999,2]
[338717195,1726896632117,-119.69421139,0.00012999,2]
[338717196,1726896632127,-500.0,0.00012999,2]
[338717197,1726896632136,-500.0,0.00012999,2]
[338717198,1726896632145,-500.0,0.00012999,2]
[338717199,1726896632154,-500.0,0.00012999,2]
[338717200,1726896632163,-500.0,0.00012999,2]
[338717201,1726896632173,-500.0,0.00012999,2]
[338717202,1726896632182,-500.0,0.00012999,2]
[338717203,1726896632191,-500.0,0.00012999,2]
[338717204,1726896632201,-500.0,0.00012999,2]
[338717205,1726896632213,-498.63014831,0.00012999,2]
[338717206,1726896632230,-1.36985169,0.00012999,2]
[338717207,1726896632239,-500.0,0.00012999,2]
[338717208,1726896632248,-81.55519568,0.00012999,2]
[338717209,1726896632259,-418.44480432,0.00012999,2]
[338717210,1726896632268,-500.0,0.00012999,2]
[338717211,1726896632278,-299.79,0.00012999,2]
[338717212,1726896632287,-500.0,0.00012999,2]
[338717213,1726896632297,-34.76348464,0.00012999,2]
[338717214,1726896632308,-465.23651536,0.00012999,2]
[338717215,1726896632317,-500.0,0.00012999,2]
[338717216,1726896632326,-6.58348464,0.00012999,2]
[338717217,1726896632337,-493.41651536,0.00012999,2]
[338717218,1726896632347,-178.84028189,0.00012999,2]
[338717219,1726896632356,-500.0,0.00012999,2]
[338717220,1726896632365,-190.24395901,0.00012999,2]
[338717221,1726896632374,-402.75096284,0.00012999,2]
[338717222,1726896632390,-97.24903716,0.00012999,2]
[338717223,1726896632399,-500.0,0.00012999,2]
[338717224,1726896632408,-500.0,0.00012999,2]
[338717225,1726896632418,-370.53847125,0.00012999,2]
[338717226,1726896632427,-500.0,0.00012999,2]
[338717227,1726896632436,-500.0,0.00012999,2]
[338717228,1726896632446,-500.0,0.00012999,2]
[338717229,1726896632457,-500.0,0.00012999,2]
[338717230,1726896632467,-500.0,0.00012999,2]
[338717231,1726896632476,-500.0,0.00012999,2]
[338717232,1726896632486,-500.0,0.00012999,2]
[338717233,1726896632496,-500.0,0.00012999,2]
[338717234,1726896632505,-500.0,0.00012999,2]
[338717235,1726896632514,-500.0,0.00012999,2]
[338717236,1726896632524,-500.0,0.00012999,2]
[338717237,1726896632534,-500.0,0.00012999,2]
[338717238,1726896632543,-500.0,0.00012999,2]
[338717239,1726896632552,-500.0,0.00012999,2]
[338717240,1726896632562,-500.0,0.00012999,2]
[338717241,1726896632571,-587.74,0.00013,2]
[338717242,1726896632581,-995.86,0.00013,2]
[338717243,1726896632590,-31611.40110107,0.00013,2]
[338717244,1726896632602,-163879.57740759,0.00013,2]
[338717386,1726896637888,-5824.29099293,0.00013,2]
[338717387,1726896637948,-2976.70383693,0.00013,2]
[338717391,1726896638009,-6140.29480323,0.00013,2]
[338717392,1726896638020,-836638.34683679,0.00013,2]
[338717394,1726896638031,-250.3920289,0.00013,2]
[338717396,1726896638069,-5299.89718893,0.00013,2]
[338717471,1726896639772,-2986.02658868,0.00013,2]
[338717475,1726896639834,-3663.45907987,0.00013,2]
[338717476,1726896639847,-647.526547,0.00013,2]
[338717478,1726896639859,-739.70005,0.00013,2]
[338717489,1726896640181,-669.21960628,0.00013,2]
[338717492,1726896640305,-107203.75472218,0.00013,2]
[338717494,1726896640314,-974.61465543,0.00013,2]
[338717495,1726896640324,-109259.0150398,0.00013,2]
[338717497,1726896640340,-9791.3908275,0.00013,2]
[338717498,1726896640351,-1122.90171451,0.00013,2]
[338717500,1726896640366,-1285.05571944,0.00013,2]
[338717502,1726896640378,-51832.92783422,0.00013,2]
[338717503,1726896640389,-10038.2035423,0.00013,2]
[338717630,1726896643457,-11740.77866889,0.00013,2]
[338717632,1726896643469,-10539.79333542,0.00013,2]
[338717633,1726896643481,-2159.59999991,0.00013,2]
[338717635,1726896643492,-2974.33211636,0.00013,2]
[338717636,1726896643503,-296.18044634,0.00013,2]
[338717638,1726896643515,-9250.7235472,0.00013,2]
[338717639,1726896643527,-3395.57123752,0.00013,2]
[338717641,1726896643539,-4616.80177371,0.00013,2]
[338717642,1726896643550,-56951.87989369,0.00013,2]
[338717644,1726896643561,-1625.7938459,0.00013,2]
[338717645,1726896643572,-817.91371291,0.00013,2]
[338717647,1726896643592,-2526.94424042,0.00013,2]
[338717649,1726896643603,-184103.83481637,0.00013,2]
[338717650,1726896643614,-9022.73171167,0.00013,2]
[338717652,1726896643626,-1279.97005618,0.00013,2]
[338717653,1726896643637,-16193.59417269,0.00013,2]
[338717654,1726896643648,-1311.45,0.00013,2]
[338717656,1726896643659,-936.70315654,0.00013,2]
[338717657,1726896643670,-289.34499,0.00013,2]
[338717659,1726896643681,-407.97,0.00013,2]
[338717660,1726896643693,-632.52348141,0.00013,2]
[338717662,1726896643703,-911.66148729,0.00013,2]
[338717663,1726896643717,-4336.95767507,0.00013,2]
[338717665,1726896643749,-500.0,0.00012999,2]
[338717667,1726896643759,-112.5,0.00012999,2]
[338717760,1726896646024,-3004.840942,0.00012976,2]
[338717762,1726896646036,-1478.64689873,0.00012976,2]
[338717764,1726896646048,-547.84176427,0.00012976,2]
[338717767,1726896646060,-1053.5395322,0.00012976,2]
[338717769,1726896646072,-7278.8908628,0.00012976,2]
[338717771,1726896646081,-387.5,0.00012999,2]
[338717773,1726896646091,-500.0,0.00012999,2]
[338717775,1726896646100,-500.0,0.00012999,2]
[338717777,1726896646110,-500.0,0.00012999,2]
[338717779,1726896646120,-500.0,0.00012999,2]
[338717781,1726896646129,-265.84,0.00012999,2]
[338717783,1726896646139,-500.0,0.00012999,2]
[338717785,1726896646148,-500.0,0.00012999,2]
[338717787,1726896646158,-500.0,0.00012999,2]
[338717789,1726896646168,-547.87,0.00012999,2]
[338717791,1726896646178,-500.0,0.00012999,2]
[338717793,1726896646188,-500.0,0.00012999,2]
[338717795,1726896646198,-500.0,0.00012999,2]
[338717797,1726896646208,-500.0,0.00012999,2]
[338717799,1726896646218,-49409.03591872,0.00013,2]
[338717801,1726896646230,-810.7547,0.00013,2]
[338717804,1726896646248,-2311.24974926,0.00013,2]
[338717806,1726896646260,-21291.84966045,0.00013,2]
[338717809,1726896646272,-1648.51587865,0.00013,2]
[338717811,1726896646287,-828.75838488,0.00013,2]
[338717813,1726896646310,-442.80899785,0.00013,2]
[338717815,1726896646332,-640.6149,0.00013,2]
[338717817,1726896646343,-1064.7,0.00013,2]
[338717820,1726896646356,-856.2321508,0.00013,2]
[338717822,1726896646372,-54847.26024412,0.00013,2]
[338717824,1726896646384,-741.23614118,0.00013,2]
[338717827,1726896646395,-373.49586585,0.00013,2]
[338717829,1726896646411,-686.96804013,0.00013,2]
[338717831,1726896646423,-2673.4011696,0.00013,2]
[338717834,1726896646435,-1867.26480771,0.00013,2]
[338717836,1726896646446,-660.32229313,0.00013,2]
[338717838,1726896646457,-687.84000002,0.00013,2]
[338717840,1726896646469,-3095.56445462,0.00013,2]
[338717842,1726896646480,-1445.87941935,0.00013,2]
[338717845,1726896646492,-253.52,0.00013,2]
[338717847,1726896646503,-1933.99298,0.00013,2]
[338717849,1726896646515,-1753.29721596,0.00013,2]
[338717851,1726896646526,-1828.27556036,0.00013,2]
[338717854,1726896646550,-507.54,0.00012999,2]
[338717856,1726896646559,-112.6302649,0.00013,2]
[338718768,1726896710466,600.0,0.00010068,2]
[338718770,1726896712315,600.0,0.00011438,2]
[338718771,1726896765110,268.69,0.00010782,2]
[338718773,1726896916550,828.7,0.00010959,2]
[338718774,1726896929062,502.59046068,0.00011164,2]
[338718775,1726896929520,900.0,0.00010068,2]
[338718776,1726896929565,505.39930713,0.00011164,2]
[338718777,1726896931977,900.0,0.00011438,2]
[338718778,1726896962395,1400.0,8.972e-05,2]
[338718779,1726896963986,1400.0,0.00010342,2]
[338718780,1726896966711,1400.0,0.00011712,2]
[338718781,1726897030752,861.76,0.00012008,2]
[338718782,1726897102999,187.45,0.00010959,2]
[338718996,1726897240371,4855.61311904,0.00011971,2]
[338719266,1726897255609,274.93,0.00012021,2]
[338719267,1726897256450,400.82,0.00012021,2]
[338719269,1726897300086,250.0,0.00011999,2]
[338719270,1726897318018,310.81,0.00010124,2]
[338719276,1726897399217,7506.08,0.00011935,2]
[338719288,1726897490161,179.78,9.585e-05,2]
[338719290,1726897518150,3277.0,0.00012,2]
[338719292,1726897531783,651.92,0.00011982,2]
[338719294,1726897542183,1836.43,0.00011967,2]
[338719296,1726897559416,176.43,0.00012019,2]
[338719308,1726897666422,158.36,0.00010959,2]
[338719312,1726897758679,-310.59,0.00012048,2]
[338719313,1726897758701,-250.0,0.00012048,2]
[338719314,1726897758723,-370.66,0.00012048,2]
[338719315,1726897758746,-161.27,0.00012071,2]
[338719316,1726897758768,-907.48,0.00012079,2]
[338719321,1726897831913,-451.45,0.00012048,2]
[338719322,1726897831924,-8.98,0.00012079,2]
[338719323,1726897831933,-250.0,0.0001208,2]
[338719324,1726897831943,-500.0,0.00012257,2]
[338719325,1726897831952,-310.81,0.00012388,2]
[338719326,1726897831961,-286.81,0.00012737,2]
[338719327,1726897831970,-3868.9456663,0.00012789,2]
[338719328,1726897831978,-147.81186549,0.0001279,2]
[338719329,1726897831990,-687.92306954,0.0001279,2]
[338719330,1726897832001,-1664.26506497,0.0001279,2]
[338719331,1726897832010,-156.08531915,0.00012799,2]
[338719332,1726897832019,-327.31635818,0.00012799,2]
[338719333,1726897832028,-600.0,0.000128,4]
[338719334,1726897832036,-370.58,0.000128,2]
[338719335,1726897832045,-900.0,0.00012808,2]
[338719336,1726897832054,-150.99,0.00012808,2]
[338719337,1726897832063,-150.0,0.00012888,2]
[338719338,1726897832072,-500.0,0.00012889,2]
[338719339,1726897832081,-465.543,0.00012889,2]
[338719340,1726897832090,-186.13,0.00012889,2]
[338719341,1726897832099,-562.55,0.00012889,2]
[338719342,1726897832108,-500.0,0.00012889,2]
[338719343,1726897832117,-500.0,0.00012889,2]
[338719344,1726897832126,-500.0,0.00012889,2]
[338719345,1726897832136,-500.0,0.00012889,2]
[338719346,1726897832145,-500.0,0.00012889,2]
[338719347,1726897832154,-500.0,0.00012889,2]
[338719348,1726897832163,-558.11,0.00012889,2]
[338719349,1726897832172,-500.0,0.00012889,2]
[338719350,1726897832181,-500.0,0.00012889,2]
[338719351,1726897832189,-500.0,0.00012889,2]
[338719352,1726897832198,-500.0,0.00012889,2]
[338719353,1726897832207,-500.0,0.00012889,2]
[338719354,1726897832216,-500.0,0.00012889,2]
[338719355,1726897832225,-500.0,0.00012889,2]
[338719356,1726897832234,-500.0,0.00012889,2]
[338719357,1726897832243,-528.0,0.00012889,2]
[338719358,1726897832252,-500.0,0.00012889,2]
[338719359,1726897832262,-500.0,0.00012889,2]
[338719360,1726897832271,-500.0,0.00012889,2]
[338719361,1726897832280,-500.0,0.00012889,2]
[338719362,1726897832288,-500.0,0.00012889,2]
[338719363,1726897832298,-500.0,0.00012889,2]
[338719364,1726897832306,-500.0,0.00012889,2]
[338719365,1726897832315,-500.0,0.00012889,2]
[338719366,1726897832325,-500.0,0.00012889,2]
[338719367,1726897832334,-448.31504337,0.00012889,2]
[338719368,1726897832342,-500.0,0.00012889,2]
[338719369,1726897832351,-500.0,0.00012889,2]
[338719370,1726897832360,-500.0,0.00012889,2]
[338719371,1726897832369,-500.0,0.00012889,2]
[338719372,1726897832378,-415.21977506,0.00012889,2]
[338719373,1726897832390,-297.04785907,0.00012889,2]
[338719374,1726897832410,-404.07568172,0.00012681,2]
[338719375,1726897832419,-386.0834079,0.00012889,2]
[338719376,1726897832430,-345.80403217,0.00012889,2]
[338719377,1726897832443,-1162.1649258,0.00012889,2]
[338719378,1726897832451,-500.0,0.00012889,2]
[338719379,1726897832812,-500.0,0.00012889,2]
[338719380,1726897832823,-500.0,0.00012889,2]
[338719381,1726897832835,-500.0,0.00012889,2]
[338719382,1726897832845,-624.91506629,0.00012889,2]
[338719383,1726897832855,-500.0,0.00012889,2]
[338719384,1726897832865,-500.0,0.00012889,2]
[338719385,1726897832875,-500.0,0.00012889,2]
[338719386,1726897832884,-500.0,0.00012889,2]
[338719387,1726897832894,-1000.0,0.00012889,2]
[338719388,1726897832903,-535.01087122,0.00012889,2]
[338719389,1726897832912,-500.0,0.00012889,2]
[338719390,1726897832922,-500.0,0.00012889,2]
[338719391,1726897832931,-500.0,0.00012889,2]
[338719392,1726897832941,-500.0,0.00012889,2]
[338719393,1726897832950,-500.0,0.00012889,2]
[338719394,1726897832960,-500.0,0.00012889,2]
[338719395,1726897832969,-500.0,0.00012889,2]
[338719396,1726897832978,-500.0,0.00012889,2]
[338719397,1726897832988,-500.0,0.00012889,2]
[338719398,1726897832997,-500.0,0.00012889,2]
[338719399,1726897833006,-500.0,0.00012889,2]
[338719400,1726897833015,-500.0,0.00012889,2]
[338719401,1726897833024,-500.0,0.00012889,2]
[338719402,1726897833033,-500.0,0.00012889,2]
[338719403,1726897833043,-500.0,0.00012889,2]
[338719404,1726897833052,-638.66,0.00012889,2]
[338719405,1726897833061,-526.09,0.00012889,2]
[338719406,1726897833071,-500.0,0.00012889,2]
[338719407,1726897833080,-500.0,0.00012889,2]
[338719408,1726897833089,-500.0,0.00012889,2]
[338719409,1726897833098,-500.0,0.00012889,2]
[338719410,1726897833108,-500.0,0.00012889,2]
[338719411,1726897833117,-500.0,0.00012889,2]
[338719412,1726897833126,-268.21477197,0.00012889,2]
[338719413,1726897833135,-500.0,0.00012889,2]
[338719414,1726897833145,-500.0,0.00012889,2]
[338719415,1726897833154,-500.0,0.00012889,2]
[338719416,1726897833164,-500.0,0.00012889,2]
[338719417,1726897833174,-500.0,0.00012889,2]
[338719418,1726897833183,-500.0,0.00012889,2]
[338719419,1726897833192,-500.0,0.00012889,2]
[338719420,1726897833202,-500.0,0.00012889,2]
[338719421,1726897833212,-612.54,0.00012889,2]
[338719422,1726897833221,-500.0,0.00012889,2]
[338719423,1726897833231,-500.0,0.00012889,2]
[338719424,1726897833240,-500.0,0.00012889,2]
[338719425,1726897833250,-500.0,0.00012889,2]
[338719426,1726897833259,-593.22,0.00012889,2]
[338719427,1726897833269,-555.82,0.00012889,2]
[338719428,1726897833279,-500.0,0.00012889,2]
[338719429,1726897833288,-500.0,0.00012889,2]
[338719430,1726897833297,-500.0,0.00012889,2]
[338719431,1726897833308,-500.0,0.00012889,2]
[338719432,1726897833317,-500.0,0.00012889,2]
[338719433,1726897833326,-500.0,0.00012889,2]
[338719434,1726897833335,-500.0,0.00012889,2]
[338719435,1726897833343,-500.0,0.00012889,2]
[338719436,1726897833352,-500.0,0.00012889,2]
[338719437,1726897833360,-500.0,0.00012889,2]
[338719438,1726897833369,-500.0,0.00012889,2]
[338719439,1726897833378,-625.27354713,0.00012889,2]
[338719440,1726897833387,-500.0,0.00012889,2]
[338719441,1726897833397,-506.95,0.00012889,2]
[338719442,1726897833406,-500.0,0.00012889,2]
[338719443,1726897833415,-500.0,0.00012889,2]
[338719444,1726897833424,-500.0,0.00012889,2]
[338719445,1726897833436,-500.0,0.00012889,2]
[338719446,1726897833446,-500.0,0.00012889,2]
[338719447,1726897833455,-500.0,0.00012889,2]
[338719448,1726897833465,-500.0,0.00012889,2]
[338719449,1726897833475,-573.8,0.00012889,2]
[338719450,1726897833484,-500.0,0.00012889,2]
[338719451,1726897833494,-500.0,0.00012889,2]
[338719452,1726897833503,-500.0,0.00012889,2]
[338719453,1726897833513,-500.0,0.00012889,2]
[338719454,1726897833522,-500.0,0.00012889,2]
[338719455,1726897833532,-500.0,0.00012889,2]
[338719456,1726897833541,-356.43788075,0.00012889,2]
[338719457,1726897833550,-500.0,0.00012889,2]
[338719458,1726897833560,-94.92657752,0.00012889,2]
[338719459,1726897834707,-405.07342248,0.00012889,2]
[338719460,1726897834716,-500.0,0.00012889,2]
[338719461,1726897834726,-150.62338785,0.00012889,2]
[338719463,1726897837959,-349.37661215,0.00012889,2]
[338719464,1726897837969,-500.0,0.00012889,2]
[338719465,1726897837978,-30.78444681,0.00012889,2]
[338719466,1726897837989,-453.30570109,0.00012889,2]
[338719467,1726897838000,-15.9098521,0.00012889,2]
[338719468,1726897838009,-272.64676419,0.00012889,2]
[338719469,1726897838020,-227.35323581,0.00012889,2]
[338719470,1726897838029,-500.0,0.00012889,2]
[338719471,1726897838038,-66.22020782,0.00012889,2]
[338719472,1726897838049,-433.77979218,0.00012889,2]
[338719473,1726897838059,-500.0,0.00012889,2]
[338719474,1726897838068,-565.86,0.00012889,2]
[338719475,1726897838077,-500.0,0.00012889,2]
[338719476,1726897838086,-500.0,0.00012889,2]
[338719477,1726897838095,-588.46020783,0.00012889,2]
[338719478,1726897838108,-1.80979217,0.00012889,2]
[338719479,1726897838118,-500.0,0.00012889,2]
[338719480,1726897838128,-61.50347691,0.00012889,2]
[338719481,1726897838139,-428.61941707,0.00012889,2]
[338719482,1726897838151,-9.87710602,0.00012889,2]
[338719483,1726897838160,-500.0,0.00012889,2]
[338719484,1726897838169,-314.63548709,0.00012889,2]
[338719485,1726897838184,-185.36451291,0.00012889,2]
[338719486,1726897838193,-5837.21463589,0.00012889,2]
[338719487,1726897838204,-426.0,0.00012889,2]
[338719488,1726897838215,-5255.92241343,0.00012889,2]
[338719489,1726897838226,-585.08315932,0.00012889,2]
[338719490,1726897838239,-490.96579343,0.00012889,2]
[338719491,1726897838253,-87404.81399793,0.00012889,2]
[338719503,1726897838605,-3233.84,0.00012889,2]
[338719504,1726897838614,-20000.0,0.00012889,2]
[338719505,1726897838624,-250000.0,0.0001289,2]
[338719506,1726897838633,-6691.9528,0.00012899,2]
[338719507,1726897838643,-190.98665055,0.00012899,2]
[338719509,1726897838652,-173.03483173,0.00012899,2]
[338719511,1726897838661,-299.5995,0.000129,2]
[338719513,1726897838670,-1200.0,0.000129,4]
[338719515,1726897838680,-500.0,0.00012973,2]
[338719517,1726897838689,-501.97786434,0.00012973,2]
[338719519,1726897838699,-152.34,0.00012988,2]
[338719521,1726897838707,-500.0,0.00012997,2]
[338719523,1726897838717,-500.0,0.00012997,2]
[338719525,1726897838726,-500.0,0.00012997,2]
[338719527,1726897838736,-500.0,0.00012997,2]
[338719529,1726897838745,-300.33,0.00012997,2]
[338719531,1726897838754,-180.77,0.00012997,2]
[338719533,1726897838764,-553.2,0.00012997,2]
[338719535,1726897838775,-446.63,0.00012997,2]
[338719537,1726897838784,-433.6,0.00012997,2]
[338719540,1726897838794,-500.0,0.00012997,2]
[338719542,1726897838804,-450.5,0.00012997,2]
[338719544,1726897838813,-607.41,0.00012997,2]
[338719546,1726897838823,-500.0,0.00012997,2]
[338719548,1726897838832,-385.57,0.00012997,2]
[338719550,1726897838842,-496.38,0.00012997,2]
[338719552,1726897838851,-500.0,0.00012997,2]
[338719554,1726897838860,-500.0,0.00012997,2]
[338719556,1726897838869,-593.68,0.00012997,2]
[338719558,1726897838879,-500.0,0.00012997,2]
[338719560,1726897838888,-225.83,0.00012997,2]
[338719562,1726897838898,-285.35,0.00012997,2]
[338719564,1726897838907,-445.94,0.00012997,2]
[338719566,1726897838916,-500.0,0.00012997,2]
[338719568,1726897838926,-92375.44623899,0.00012997,2]
[338719570,1726897838936,-20000.0,0.00012997,2]
[338719572,1726897838946,-500.0,0.00012998,2]
[338719574,1726897838955,-500.0,0.00012998,2]
[338719576,1726897838964,-500.0,0.00012998,2]
[338719578,1726897838974,-500.0,0.00012998,2]
[338719580,1726897838983,-551.38783537,0.00012998,2]
[338719582,1726897838992,-500.0,0.00012998,2]
[338719584,1726897839001,-500.0,0.00012998,2]
[338719586,1726897839011,-500.0,0.00012998,2]
[338719588,1726897839020,-163.39,0.00012998,2]
[338719590,1726897839029,-443.6,0.00012998,2]
[338719592,1726897839038,-562.99,0.00012998,2]
[338719594,1726897839048,-500.0,0.00012998,2]
[338719596,1726897839058,-308.77,0.00012998,2]
[338719598,1726897839067,-500.0,0.00012998,2]
[338719600,1726897839076,-500.0,0.00012998,2]
[338719602,1726897839085,-500.0,0.00012998,2]
[338719604,1726897839094,-500.0,0.00012998,2]
[338719606,1726897839103,-500.0,0.00012998,2]
[338719608,1726897839113,-500.0,0.00012998,2]
[338719610,1726897839122,-344.57,0.00012998,2]
[338719612,1726897839132,-190.96,0.00012998,2]
[338719614,1726897839141,-500.0,0.00012998,2]
[338719616,1726897839151,-500.0,0.00012998,2]
[338719618,1726897839161,-500.0,0.00012998,2]
[338719620,1726897839170,-500.0,0.00012998,2]
[338719622,1726897839180,-177.52,0.00012998,2]
[338719624,1726897839190,-500.0,0.00012998,2]
[338719626,1726897839199,-500.0,0.00012998,2]
[338719628,1726897839208,-309.34,0.00012998,2]
[338719630,1726897839218,-500.0,0.00012998,2]
[338719632,1726897839227,-485.5,0.00012998,2]
[338719634,1726897839236,-500.0,0.00012998,2]
[338719636,1726897839246,-500.0,0.00012998,2]
[338719638,1726897839256,-500.0,0.00012998,2]
[338719640,1726897839265,-465.68,0.00012998,2]
[338719642,1726897839274,-532.02,0.00012998,2]
[338719644,1726897839283,-209.28,0.00012998,2]
[338719646,1726897839292,-500.0,0.00012998,2]
[338719648,1726897839303,-500.0,0.00012998,2]
[338719650,1726897839312,-500.0,0.00012998,2]
[338719652,1726897839322,-174.15,0.00012998,2]
[338719654,1726897839331,-163.3154786,0.00012998,2]
[338719656,1726897839341,-500.0,0.00012998,2]
[338719658,1726897839350,-500.0,0.00012998,2]
[338719660,1726897839359,-500.0,0.00012998,2]
[338719662,1726897839368,-2606.32,0.00012998,2]
[338719664,1726897839379,-2606.32,0.00012998,2]
[338719666,1726897839388,-2606.32,0.00012998,2]
[338719668,1726897839398,-500.0,0.00012998,2]
[338719670,1726897839407,-499.95930871,0.00012998,2]
[338719672,1726897839416,-500.0,0.00012998,2]
[338719674,1726897839426,-500.0,0.00012998,2]
[338719676,1726897839440,-500.0,0.00012998,2]
[338719678,1726897839450,-500.0,0.00012998,2]
[338719680,1726897839459,-500.0,0.00012998,2]
[338719682,1726897839468,-1000.0,0.00012998,2]
[338719684,1726897839477,-1000.0,0.00012998,2]
[338719686,1726897839486,-1000.0,0.00012998,2]
[338719688,1726897839496,-500.0,0.00012998,2]
[338719690,1726897839505,-631.87168726,0.00012998,2]
[338719692,1726897839515,-500.0,0.00012998,2]
[338719694,1726897839524,-500.0,0.00012998,2]
[338719696,1726897839534,-500.0,0.00012998,2]
[338719698,1726897839543,-500.0,0.00012998,2]
[338719700,1726897839552,-572.57774661,0.00012998,2]
[338719702,1726897839562,-500.0,0.00012998,2]
[338719704,1726897839571,-500.0,0.00012998,2]
[338719706,1726897839580,-240.24,0.00012998,2]
[338719708,1726897839590,-500.0,0.00012998,2]
[338719710,1726897839600,-500.0,0.00012998,2]
[338719711,1726897839610,-300.89,0.00012998,2]
[338719713,1726897839620,-500.0,0.00012998,2]
[338719715,1726897839629,-500.0,0.00012998,2]
[338719717,1726897839639,-426.93,0.00012998,2]
[338719719,1726897839649,-305.98,0.00012998,2]
[338719721,1726897839659,-500.0,0.00012998,2]
[338719723,1726897839668,-500.0,0.00012998,2]
[338719725,1726897839678,-379.17,0.00012998,2]
[338719727,1726897839688,-500.0,0.00012998,2]
[338719729,1726897839698,-155.67,0.00012998,2]
[338719731,1726897839708,-566.22,0.00012998,2]
[338719732,1726897839717,-500.0,0.00012998,2]
[338719735,1726897839727,-550.18,0.00012998,2]
[338719736,1726897839736,-616.69,0.00012998,2]
[338719738,1726897839746,-503.79792354,0.00012998,2]
[338719740,1726897839756,-3233.84,0.00012998,2]
[338719742,1726897839766,-3233.84,0.00012998,2]
[338719744,1726897839776,-3233.84,0.00012998,2]
[338719747,1726897839785,-20000.0,0.00012998,2]
[338719750,1726897839795,-20000.0,0.00012998,2]